bitfinex/quotes_ETHUSD_20251023
["timestamp","ask_amount","ask_price","bid_price","bid_amount"]
[1761244237415,3.311,3884.8,3883.8,0.4319]
[1761244237416,3.311,3884.8,3884.3,2.79345509]
[1761244237622,3.311,3884.8,3884.4,2.57438865]
[1761244238224,3.311,3884.8,3884.4,2.57439532]
[1761244238458,3.311,3884.8,3884.3,0.219]
[1761244238669,0.1877,3886.1,3884.5,0.4319]
[1761244238814,3.311,3886.0,3884.5,0.4319]
[1761244239013,3.311,3886.0,3884.7,2.57420135]
[1761244239243,3.311,3886.0,3884.7,2.87481149]
[1761244239442,3.311,3886.0,3884.8,3.00601606]
[1761244239610,3.311,3886.0,3884.7,0.30061014]
[1761244239611,3.311,3886.0,3885.6,2.57357157]
[1761244239813,3.311,3886.0,3884.9,0.4319]
[1761244240014,0.2338,3887.1,3886.0,2.57327791]
[1761244240316,3.277,3887.0,3886.1,2.57327006]
[1761244240516,3.277,3887.0,3886.2,2.57320117]
[1761244240923,3.277,3887.0,3886.1,2.79226298]
[1761244241445,3.277,3887.0,3886.1,0.219]
[1761244241747,2.79995565,3886.9,3886.1,0.219]
[1761244241943,0.2272,3886.9,3886.1,0.219]
[1761244242543,3.277,3887.0,3886.1,0.219]
[1761244242850,0.001,3886.4,3886.3,2.57314154]
[1761244243243,0.001,3886.4,3886.3,3.13384154]
[1761244244740,0.001,3886.4,3886.3,3.72645224]
[1761244245124,0.001,3886.4,3886.3,3.13384154]
[1761244246127,0.001,3886.4,3886.3,3.00504154]
[1761244248135,0.001,3886.4,3886.3,4.56024154]
[1761244250154,0.001,3886.4,3886.1,0.219]
[1761244250558,0.001,3886.4,3884.6,2.57425012]
[1761244250756,0.2282,3886.4,3885.6,2.57354823]
[1761244250964,0.2282,3886.4,3885.5,2.57366242]
[1761244251561,0.2282,3886.4,3885.6,2.57358996]
[1761244252174,0.2282,3886.4,3885.1,0.4319]
[1761244252346,0.2282,3886.4,3885.6,2.57354403]
[1761244252873,0.2282,3886.4,3885.1,0.4319]
[1761244252874,0.2282,3886.4,3885.7,2.57353546]
[1761244253050,0.2282,3886.4,3885.1,0.4319]
[1761244253051,0.2282,3886.4,3885.5,2.57363349]
[1761244253368,0.2282,3886.4,3885.6,2.57358578]
[1761244253582,0.2282,3886.4,3885.1,0.4319]
[1761244254098,0.2282,3886.4,3885.7,2.57353679]
[1761244254270,0.2282,3886.4,3885.4,2.57367687]
[1761244254443,0.2282,3886.4,3885.3,2.57377969]
[1761244254637,0.2282,3886.4,3885.4,2.57373758]
[1761244254834,0.2282,3886.4,3885.5,2.57366582]
[1761244255041,0.001,3886.4,3885.1,0.4319]
[1761244255250,0.001,3886.4,3885.8,2.57346465]
[1761244255660,0.001,3886.4,3885.5,2.57366666]
[1761244255661,0.001,3886.4,3885.7,2.57351708]
[1761244256061,0.1288,3886.1,3885.7,2.57351708]
[1761244256448,0.1288,3886.1,3885.7,2.57352337]
[1761244256653,0.1288,3886.1,3885.8,2.57347183]
[1761244257339,0.001,3886.4,3886.1,2.57327095]
[1761244257654,0.1288,3886.3,3886.2,2.57320776]
[1761244257854,0.001,3886.4,3886.2,0.1288]
[1761244258061,0.001,3886.4,3886.3,2.57314154]
[1761244258375,0.2282,3886.4,3885.4,1.9871]
[1761244258577,0.2282,3886.4,3886.0,0.1288]
[1761244258772,0.2282,3886.4,3886.1,2.57326802]
[1761244258963,0.001,3886.4,3886.1,2.57326802]
[1761244259167,0.001,3886.4,3886.1,2.57327397]
[1761244259350,0.001,3886.4,3886.2,2.57320021]
[1761244260957,0.001,3886.4,3886.1,0.2219]
[1761244261357,0.001,3886.4,3886.1,2.7951543]
[1761244261952,0.001,3886.4,3886.1,0.2219]
[1761244262152,0.001,3886.4,3886.0,0.1288]
[1761244262680,0.2282,3886.4,3886.0,2.57333714]
[1761244262976,0.2282,3886.4,3885.9,0.1288]
[1761244262977,0.2282,3886.4,3885.9,2.7022042]
[1761244263282,0.2282,3886.4,3885.9,2.70215708]
[1761244263451,0.001,3886.4,3885.9,0.1288]
[1761244263651,0.001,3886.4,3886.0,2.57329293]
[1761244263957,0.001,3886.4,3886.0,2.57333006]
[1761244264157,0.001,3886.4,3886.2,2.57318077]
[1761244264351,0.001,3886.4,3886.1,3.23974941]
[1761244264755,0.001,3886.4,3886.3,2.57314154]
[1761244265472,0.001,3886.4,3886.2,3.0177926]
[1761244265787,0.001,3886.4,3886.2,2.5731926]
[1761244266156,0.001,3886.4,3886.3,2.57314154]
[1761244266704,0.001,3886.4,3886.0,2.57327487]
[1761244266888,0.001,3886.4,3885.9,0.1288]
[1761244267373,0.001,3886.4,3886.1,2.57322622]
[1761244267573,0.001,3886.4,3886.1,2.57327397]
[1761244267897,0.001,3886.4,3886.2,2.5731644]
[1761244269458,0.001,3886.4,3886.3,2.57314154]
[1761244269891,0.001,3886.4,3886.3,3.14654154]
[1761244270055,0.001,3886.4,3886.3,5.1449226]
[1761244270877,0.001,3886.4,3886.3,8.4549226]
[1761244272462,0.001,3886.4,3886.3,8.9618026]
[1761244272887,0.001,3886.4,3886.3,8.4539226]
[1761244275505,0.001,3886.4,3886.3,8.9608026]
[1761244277379,0.001,3886.8,3886.3,8.9608026]
[1761244277380,0.001,3886.8,3886.7,3.07975673]
[1761244277709,0.001,3886.8,3886.7,7.94395673]
[1761244277896,0.001,3886.8,3886.7,8.38855673]
[1761244278477,0.001,3887.8,3887.7,3.07909493]
[1761244278675,0.001,3887.8,3887.7,7.94329493]
[1761244278996,0.001,3887.8,3887.7,9.4616441]
[1761244280003,0.001,3887.8,3887.7,9.5904441]
[1761244281085,0.001,3887.8,3887.7,9.71639732]
[1761244283423,0.001,3887.8,3887.7,6.2814441]
[1761244283603,0.001,3887.8,3887.7,9.5894441]
[1761244283806,0.2331,3887.8,3887.5,0.12916986]
[1761244284150,0.2331,3887.8,3887.7,2.57221493]
[1761244284316,0.2331,3887.8,3887.6,2.57226988]
[1761244284495,0.2331,3887.8,3887.5,0.12916986]
[1761244284684,0.2331,3887.8,3887.4,2.57241287]
[1761244285113,0.2331,3887.8,3887.0,3.308]
[1761244285315,0.2331,3887.8,3887.6,2.57227263]
[1761244285483,0.001,3887.8,3887.7,2.57221493]
[1761244286299,0.001,3887.8,3887.0,2.57262203]
[1761244286300,0.2184,3887.8,3886.7,0.4301]
[1761244286587,0.2184,3887.8,3887.6,2.57227981]
[1761244287018,0.2184,3887.8,3886.6,0.28559611]
[1761244287221,0.2184,3887.8,3887.3,2.57242962]
[1761244287515,0.2184,3887.8,3887.2,2.57254104]
[1761244287945,0.2184,3887.8,3887.3,2.5724705]
[1761244288150,0.2184,3887.8,3887.6,2.57221876]
[1761244288447,0.2184,3887.8,3887.7,2.57221493]
[1761244288448,0.001,3887.8,3887.7,2.57221493]
[1761244288842,0.001,3887.8,3885.8,0.2219]
[1761244289046,0.001,3887.8,3883.6,0.002]
[1761244289047,0.22,3885.9,3883.6,0.002]
[1761244289211,1.5552,3885.6,3883.6,0.002]
[1761244289409,2.44389238,3885.8,3883.6,0.002]
[1761244289410,1.5552,3885.2,3883.6,0.002]
[1761244289724,0.2262,3883.7,3883.6,0.002]
[1761244290337,0.446,3883.7,3883.6,0.002]
[1761244292455,0.446,3883.7,3883.6,2.57693047]
[1761244293038,0.446,3883.7,3883.6,0.002]
[1761244293865,3.776,3883.7,3883.6,0.002]
[1761244294074,2.5751294,3883.3,3883.2,0.002]
[1761244294365,4.13052835,3883.0,3882.9,0.002]
[1761244294963,2.57539467,3882.9,3882.8,0.002]
[1761244295145,3.767,3882.9,3882.8,0.002]
[1761244295489,6.34239467,3882.9,3882.8,0.002]
[1761244297286,6.84927467,3882.9,3882.8,0.002]
[1761244297572,3.767,3882.9,3882.8,0.002]
[1761244297773,6.34239467,3882.9,3882.8,0.002]
[1761244298155,3.767,3882.9,3882.8,0.002]
[1761244298353,6.34239467,3882.9,3882.8,0.002]
[1761244299091,3.767,3882.9,3882.8,0.002]
[1761244299390,7.89759467,3882.9,3882.8,0.002]
[1761244299590,5.3222,3882.9,3882.8,0.002]
[1761244299774,7.89759467,3882.9,3882.8,0.002]
[1761244299975,5.3222,3882.9,3882.8,0.002]
[1761244300176,1.9892,3882.9,3882.8,0.002]
[1761244300376,5.3202,3882.9,3882.8,0.002]
[1761244300785,0.2353,3882.9,3882.8,0.002]
[1761244300952,0.2349,3883.1,3882.8,0.002]
[1761244301148,0.2349,3883.1,3882.9,2.57537799]
[1761244301149,3.331,3883.1,3882.9,2.57537799]
[1761244301551,0.4316,3883.6,3882.8,0.002]
[1761244301752,3.331,3883.5,3882.8,0.002]
[1761244301975,3.331,3883.5,3883.3,2.57508285]
[1761244302193,3.331,3883.5,3883.4,2.57506308]
[1761244302361,3.331,3883.5,3883.3,2.57509147]
[1761244302754,3.331,3883.5,3883.4,2.57506308]
[1761244303438,3.5582,3883.7,3882.8,2.88170371]
[1761244303730,3.5582,3883.7,3882.9,0.33466037]
[1761244303932,3.687,3883.7,3883.2,0.1288]
[1761244304245,3.687,3883.7,3883.3,2.57511732]
[1761244304420,3.687,3883.7,3883.2,0.1288]
[1761244304421,3.8857,3883.7,3883.4,2.57503091]
[1761244304921,0.5537,3883.7,3883.4,2.57503997]
[1761244305126,3.8847,3883.7,3883.4,2.57503997]
[1761244305423,3.4598,3883.7,3883.4,2.57501515]
[1761244305622,3.4598,3883.7,3883.2,0.1288]
[1761244305623,3.4598,3883.7,3883.3,2.5751294]
[1761244305825,3.4598,3883.7,3883.6,2.57493047]
[1761244306181,3.4598,3883.7,3883.4,2.57501308]
[1761244306386,3.4598,3883.7,3883.3,2.57512008]
[1761244306612,0.199,3883.6,3883.2,0.1288]
[1761244306934,0.199,3883.6,3883.2,2.70394229]
[1761244307132,0.199,3883.6,3883.3,2.57512459]
[1761244307315,3.4598,3883.7,3883.2,2.70393538]
[1761244307494,3.4598,3883.7,3883.5,2.57493295]
[1761244308412,3.4598,3883.7,3883.2,2.70398772]
[1761244308722,0.199,3883.6,3883.4,2.57501818]
[1761244309094,3.4598,3883.7,3883.4,2.57501818]
[1761244309289,3.4598,3883.7,3883.5,2.57498933]
[1761244309525,3.4598,3883.7,3883.6,2.57493047]
[1761244309703,0.2353,3884.1,3883.6,2.57493047]
[1761244309898,0.2353,3884.1,3883.2,0.4649]
[1761244309899,3.325,3883.8,3883.7,2.57486417]
[1761244310204,1.5552,3884.5,3884.4,2.57438456]
[1761244310205,0.1288,3884.5,3884.4,2.57438456]
[1761244310385,0.874,3884.5,3884.4,2.57438456]
[1761244311054,0.1288,3884.8,3884.1,0.1288]
[1761244311348,0.1993,3885.1,3884.9,2.57402491]
[1761244311349,3.326,3885.1,3884.9,2.57402491]
[1761244311663,3.326,3885.1,3884.7,2.57418854]
[1761244311664,3.326,3885.1,3885.0,2.57400257]
[1761244311851,3.5168,3885.1,3884.8,2.57412662]
[1761244312054,0.1288,3885.3,3884.9,2.57405493]
[1761244312223,3.326,3885.2,3884.9,2.57405493]
[1761244314051,0.001,3884.9,3884.8,2.57411359]
[1761244314351,0.001,3884.9,3884.8,3.56673148]
[1761244314852,0.001,3884.9,3884.7,0.1288]
[1761244315064,0.001,3884.9,3884.0,5.90062461]
[1761244315065,0.4247,3884.9,3884.0,2.0201]
[1761244315360,0.5535,3884.9,3884.4,0.1288]
[1761244315661,0.4261,3884.8,3884.5,2.57432549]
[1761244315829,0.4261,3884.8,3884.4,0.1288]
[1761244316038,0.4261,3884.8,3884.4,2.70317945]
[1761244316224,0.4261,3884.8,3884.4,0.1288]
[1761244316555,0.4261,3884.8,3884.4,2.70317659]
[1761244316940,3.325,3884.7,3884.4,0.1288]
[1761244317140,3.5158,3884.7,3884.0,2.57465711]
[1761244317351,0.1288,3884.5,3884.1,2.5745852]
[1761244317549,0.1908,3884.4,3884.1,2.5745852]
[1761244318069,0.001,3884.9,3884.6,2.57425733]
[1761244318272,0.1298,3884.9,3884.7,2.57418451]
[1761244318637,0.1912,3884.8,3884.3,0.1288]
[1761244318837,0.4256,3884.8,3884.2,2.57452623]
[1761244319141,0.4256,3884.8,3883.1,1.7771]
[1761244319142,1.5552,3884.6,3883.1,0.2219]
[1761244319465,2.57420135,3884.7,3883.1,0.2219]
[1761244319466,3.87054554,3884.5,3884.2,2.57448937]
[1761244319633,3.328,3884.5,3884.2,2.57448937]
[1761244320238,3.328,3884.5,3883.5,0.4488]
[1761244320441,0.001,3884.9,3884.6,2.57421555]
[1761244320442,3.329,3884.7,3884.6,2.57421555]
[1761244321691,0.001,3884.9,3884.6,2.57426762]
[1761244321976,0.001,3884.9,3884.8,2.57413509]
[1761244322439,0.001,3884.9,3884.8,3.02293509]
[1761244322639,0.001,3884.9,3884.8,2.57413509]
[1761244323938,0.001,3884.9,3884.8,3.02293509]
[1761244324780,0.001,3884.9,3884.8,2.57413509]
[1761244325255,0.001,3884.9,3884.8,3.53777536]
[1761244325601,0.001,3884.9,3884.8,5.09297536]
[1761244327865,0.001,3884.9,3883.0,0.4488]
[1761244328099,0.001,3884.9,3882.7,2.57549663]
[1761244328100,0.215,3884.9,3883.6,2.57492897]
[1761244328267,0.215,3884.9,3884.3,2.57445653]
[1761244328478,0.215,3884.9,3884.2,2.57452424]
[1761244328679,0.215,3884.9,3883.4,0.4488]
[1761244328999,3.33055726,3884.9,3883.4,0.77338957]
[1761244329334,0.1288,3884.3,3884.0,2.57461635]
[1761244329509,0.1288,3884.3,3883.8,0.1288]
[1761244329671,0.1288,3884.3,3882.9,0.4488]
[1761244329672,0.54228565,3884.5,3883.1,3.31415255]
[1761244329872,0.1288,3884.1,3883.8,2.57475499]
[1761244330066,0.1288,3884.1,3883.5,0.1288]
[1761244330267,0.1288,3884.1,3883.8,2.57475341]
[1761244330568,0.1288,3884.1,3883.9,2.57473117]
[1761244331403,0.1288,3884.1,3883.8,2.57477784]
[1761244331806,0.2174,3884.0,3883.8,2.57477784]
[1761244332103,0.1288,3884.4,3883.8,2.70357784]
[1761244332306,0.1288,3884.4,3884.1,2.57458252]
[1761244332617,0.1288,3884.4,3884.2,2.57451436]
[1761244332910,3.335,3884.6,3884.5,2.57433389]
[1761244332911,0.1288,3884.6,3884.5,2.57433389]
[1761244333434,0.001,3884.9,3884.8,2.57413509]
[1761244337230,0.001,3884.9,3884.8,3.15173509]
[1761244337396,0.001,3884.9,3884.8,3.23065036]
[1761244338932,0.001,3884.9,3884.8,3.67945036]
[1761244339300,0.001,3884.9,3884.8,3.23065036]
[1761244339628,0.001,3884.9,3884.8,2.70293509]
[1761244341094,0.001,3884.9,3884.8,3.15173509]
[1761244341300,0.001,3884.9,3884.8,2.70293509]
[1761244344431,0.001,3884.9,3884.8,3.15173509]
[1761244346624,0.001,3884.9,3884.8,6.47973509]
[1761244346935,0.001,3884.9,3884.8,8.94033036]
[1761244349738,0.001,3884.9,3884.8,5.61233036]
[1761244349937,0.001,3884.9,3884.8,5.16353036]
[1761244350310,0.001,3884.9,3884.8,5.60493036]
[1761244351541,0.001,3884.9,3884.8,8.92893036]
[1761244351855,0.001,3884.9,3884.8,9.43581036]
[1761244354238,0.001,3884.9,3884.8,7.45033509]
[1761244354533,0.001,3884.9,3884.8,7.89173509]
[1761244356565,0.001,3884.9,3884.8,8.39861509]
[1761244360261,0.001,3884.9,3884.8,2.06208]
[1761244360262,0.2346,3884.9,3884.8,2.06208]
[1761244360447,0.4406,3884.9,3883.2,1.83236457]
[1761244360647,0.4406,3884.9,3883.6,2.57492219]
[1761244360648,2.57419908,3884.8,3883.6,2.57492219]
[1761244360869,2.57419908,3884.8,3883.3,3.333]
[1761244360870,0.206,3884.8,3883.3,3.333]
[1761244361167,0.71847595,3884.9,3883.4,4.13026308]
[1761244361168,2.78020808,3884.7,3883.4,4.13026308]
[1761244361469,0.206,3884.7,3883.9,2.57468417]
[1761244361764,0.71847595,3884.9,3883.1,2.79712004]
[1761244361765,0.206,3884.6,3883.6,3.332]
[1761244361968,0.206,3884.6,3884.3,2.5744638]
[1761244362164,0.206,3884.6,3884.4,2.57436448]
[1761244362367,0.206,3884.6,3884.2,2.57448226]
[1761244362552,0.206,3884.6,3883.6,3.332]
[1761244362553,0.206,3884.6,3884.3,2.57441445]
[1761244362756,0.206,3884.6,3884.4,2.57439919]
[1761244363475,0.206,3884.6,3884.5,2.57433389]
[1761244364064,0.2346,3884.9,3884.8,2.57413509]
[1761244364381,0.4406,3884.9,3884.8,2.57413509]
[1761244364575,0.4406,3884.9,3884.7,2.57413836]
[1761244364783,0.4406,3884.9,3884.8,2.57413509]
[1761244364784,0.2346,3884.9,3884.8,2.57413509]
[1761244365368,0.4406,3884.9,3884.8,2.57413509]
[1761244365878,0.4406,3884.9,3884.6,1.5552]
[1761244366085,0.206,3884.8,3884.7,2.57420135]
[1761244368674,0.206,3884.8,3884.5,0.1288]
[1761244369488,0.206,3884.8,3884.7,2.57420135]
[1761244369982,0.001,3884.9,3884.8,4.12933509]
[1761244370185,0.001,3884.9,3884.8,4.38675523]
[1761244370554,0.001,3884.9,3884.8,4.82815523]
[1761244371864,0.001,3884.9,3884.8,8.15815523]
[1761244376485,0.001,3884.9,3884.8,4.38675523]
[1761244376684,0.001,3884.9,3884.8,7.71375523]
[1761244376865,0.001,3884.9,3884.8,4.38675523]
[1761244377370,0.001,3884.9,3884.8,4.82815523]
[1761244377701,0.001,3884.9,3884.8,5.33503523]
[1761244377996,0.001,3884.9,3884.8,5.46383523]
[1761244381499,0.001,3884.9,3884.8,8.78783523]
[1761244384678,0.001,3884.9,3884.8,8.30785523]
[1761244384880,0.001,3884.9,3884.8,8.81473523]
[1761244386267,0.12,3887.3,3886.5,2.57300913]
[1761244386704,0.4363,3886.6,3886.5,2.57300913]
[1761244387270,0.4363,3886.6,3885.9,2.57340641]
[1761244387504,0.2141,3886.5,3886.4,2.57302319]
[1761244387704,0.2141,3886.5,3885.7,2.57353887]
[1761244387885,0.2138,3885.8,3885.7,2.57353887]
[1761244388399,0.4279,3885.8,3885.7,2.57353887]
[1761244389590,0.4279,3885.8,3883.4,2.57502796]
[1761244389591,0.4279,3885.8,3884.9,3.317]
[1761244389906,0.4279,3885.8,3883.9,0.6962]
[1761244389907,0.2141,3885.7,3885.1,2.57391484]
[1761244390108,0.2141,3885.7,3885.3,2.57375348]
[1761244390277,0.2141,3885.7,3885.3,2.57376038]
[1761244390976,0.2141,3885.7,3885.4,2.57372141]
[1761244391377,0.2141,3885.7,3885.5,2.57365866]
[1761244391775,0.2141,3885.7,3885.4,2.57371725]
[1761244392085,0.2141,3885.7,3885.5,2.57364264]
[1761244392479,0.2141,3885.7,3885.3,2.57374369]
[1761244392691,0.2141,3885.7,3885.4,2.57371783]
[1761244393407,0.2141,3885.7,3884.7,2.57420135]
[1761244393701,0.2141,3885.7,3885.4,2.57372446]
[1761244394287,0.2141,3885.7,3885.3,2.57378674]
[1761244394476,0.2141,3885.7,3885.1,2.57393553]
[1761244394804,0.2141,3885.7,3884.9,2.57404437]
[1761244395194,0.2141,3885.7,3884.3,4.12966638]
[1761244395403,0.2141,3885.7,3884.3,1.96816664]
[1761244395607,0.2141,3885.7,3885.6,2.5736051]
[1761244396303,0.3429,3885.7,3885.6,2.5736051]
[1761244396908,0.3429,3885.7,3885.1,0.1288]
[1761244397096,0.234,3885.6,3885.4,2.57369321]
[1761244397408,0.234,3885.6,3885.3,2.57379988]
[1761244397705,0.234,3885.6,3884.5,3.314]
[1761244397706,0.1288,3885.4,3885.2,2.5738538]
[1761244398112,0.234,3885.3,3885.2,2.5738538]
[1761244398613,0.1288,3885.4,3885.3,2.57380382]
[1761244398985,0.2138,3885.8,3885.2,2.5738538]
[1761244399304,0.1288,3885.5,3885.0,2.70279659]
[1761244399488,0.1288,3885.5,3885.3,2.57377123]
[1761244399684,0.1288,3885.5,3883.8,3.04703594]
[1761244399685,0.234,3885.4,3883.3,0.2239]
[1761244399885,0.2138,3884.7,3883.5,3.315]
[1761244400100,0.2138,3884.7,3884.3,2.57442948]
[1761244400291,0.234,3884.6,3884.3,2.57442948]
[1761244400813,0.234,3884.6,3884.4,2.57438289]
[1761244401105,0.234,3884.6,3883.1,0.2219]
[1761244401304,0.234,3884.6,3884.2,2.57451758]
[1761244401521,0.234,3884.6,3883.3,3.315]
[1761244401522,0.234,3884.6,3884.1,2.574585]
[1761244401694,0.234,3884.6,3884.4,0.002]
[1761244407511,2.57433389,3884.5,3884.4,0.002]
[1761244407717,4.12953389,3884.5,3884.4,0.002]
[1761244407903,4.36353389,3884.5,3884.4,0.002]
[1761244408911,1.7892,3884.5,3884.4,0.002]
[1761244409420,5.1042,3884.5,3884.4,0.002]
[1761244409583,7.67853389,3884.5,3884.4,0.002]
[1761244409783,7.80733389,3884.5,3884.4,0.002]
[1761244410409,5.233,3884.5,3884.4,0.002]
[1761244410803,8.54339613,3884.5,3884.4,0.002]
[1761244412785,5.233,3884.5,3884.4,0.002]
[1761244413620,5.233,3884.5,3884.0,0.002]
[1761244413621,2.06208,3884.4,3884.0,0.002]
[1761244413784,14.06593534,3884.1,3884.0,0.002]
[1761244413983,17.9219872,3884.1,3884.0,0.002]
[1761244414188,18.1559872,3884.1,3884.0,0.002]
[1761244420841,18.83526663,3884.1,3884.0,0.002]
[1761244422112,12.94466763,3884.1,3884.0,0.002]
[1761244422313,0.77405186,3884.1,3884.0,0.002]
[1761244422536,6.124599,3884.1,3884.0,0.002]
[1761244422841,6.66419661,3884.1,3884.0,0.002]
[1761244423040,8.21939661,3884.1,3884.0,0.002]
[1761244423563,8.34819661,3884.1,3884.0,0.002]
[1761244425667,8.85507661,3884.1,3884.0,0.002]
[1761244426578,5.53907661,3884.1,3884.0,0.002]
[1761244426736,8.85507661,3884.1,3884.0,0.002]
[1761244427884,5.77359761,3884.1,3884.0,0.002]
[1761244428081,3.4448,3884.1,3884.0,0.002]
[1761244428392,5.0,3884.1,3884.0,0.002]
[1761244428742,5.234,3884.1,3884.0,0.002]
[1761244429132,5.77467727,3884.1,3884.0,0.002]
[1761244430449,8.34927627,3884.1,3884.0,0.002]
[1761244433158,5.54067727,3884.1,3884.0,0.002]
[1761244433364,5.77467727,3884.1,3884.0,0.002]
[1761244433878,8.85615627,3884.1,3884.0,0.002]
[1761244434749,13.50718134,3884.1,3884.0,0.002]
[1761244435352,12.83012244,3884.1,3884.0,0.002]
[1761244437362,13.73228809,3884.1,3884.0,0.002]
[1761244438984,13.22540809,3884.1,3884.0,0.002]
[1761244439568,13.73228809,3884.1,3884.0,0.002]
[1761244441688,8.11527627,3884.1,3884.0,0.002]
[1761244443609,5.54067727,3884.1,3884.0,0.002]
[1761244443775,9.02772621,3884.1,3884.0,0.002]
[1761244444088,8.79372621,3884.1,3884.0,0.002]
[1761244444783,12.87289238,3884.1,3884.0,0.002]
[1761244445868,12.63889238,3884.1,3884.0,0.002]
[1761244447388,12.64158322,3884.1,3884.0,0.002]
[1761244447588,12.87558322,3884.1,3884.0,0.002]
[1761244449096,12.64158322,3884.1,3884.0,0.002]
[1761244450396,11.96279541,3884.1,3884.0,0.002]
[1761244450903,9.38819641,3884.1,3884.0,0.002]
[1761244451202,5.41423024,3884.1,3884.0,0.4378]
[1761244451384,6.09334871,3884.1,3884.0,0.002]
[1761244451702,12.64191388,3884.1,3884.0,0.002]
[1761244452093,10.06731488,3884.1,3884.0,0.002]
[1761244453280,11.96279541,3884.1,3884.0,0.002]
[1761244454685,12.09159541,3884.1,3884.0,0.002]
[1761244455081,9.51699641,3884.1,3884.0,0.002]
[1761244455286,10.19626664,3884.1,3884.0,0.002]
[1761244455682,12.77086564,3884.1,3884.0,0.002]
[1761244456609,10.19626664,3884.1,3884.0,0.002]
[1761244456778,2.90630047,3884.1,3884.0,0.4378]
[1761244456984,5.54203024,3884.1,3884.0,0.002]
[1761244457879,12.09059541,3884.1,3884.0,0.002]
[1761244458201,10.19526664,3884.1,3884.0,0.002]
[1761244458782,9.51599641,3884.1,3884.0,0.002]
[1761244461293,12.09059541,3884.1,3884.0,0.002]
[1761244461490,9.51599641,3884.1,3884.0,0.002]
[1761244463184,5.54203024,3884.1,3884.0,0.4378]
[1761244464390,5.54103024,3884.1,3884.0,0.4378]
[1761244464717,5.54103024,3884.1,3884.0,0.002]
[1761244464899,9.51499641,3884.1,3884.0,0.002]
[1761244465290,12.08959541,3884.1,3884.0,0.002]
[1761244466718,12.76886564,3884.1,3884.0,0.002]
[1761244467894,12.82137541,3884.1,3884.0,0.002]
[1761244468498,14.17462388,3884.1,3884.0,0.002]
[1761244468819,3.00428352,3884.1,3884.0,0.002]
[1761244469127,7.98682924,3884.1,3884.0,0.002]
[1761244469308,5.41223024,3884.1,3884.0,0.002]
[1761244469714,7.98682924,3884.1,3884.0,0.002]
[1761244470020,8.6664953,3884.1,3884.0,0.002]
[1761244470323,6.0918963,3884.1,3884.0,0.002]
[1761244470818,3.85603024,3884.1,3884.0,0.4439]
[1761244471387,0.54303024,3884.1,3884.0,0.4439]
[1761244471605,3.85603024,3884.1,3884.0,0.4439]
[1761244474813,7.16648322,3884.1,3884.0,0.4439]
[1761244476708,7.16648322,3884.1,3884.0,0.002]
[1761244478013,7.16648322,3884.1,3884.0,0.4439]
[1761244478403,3.85348322,3884.1,3884.0,0.4439]
[1761244478604,7.16648322,3884.1,3884.0,0.4439]
[1761244478936,0.67183024,3884.1,3884.0,0.4439]
[1761244479138,0.001,3884.4,3884.1,2.574599]
[1761244479139,0.54303024,3884.2,3884.1,2.574599]
[1761244479308,0.001,3884.4,3884.3,2.57446644]
[1761244479847,0.001,3884.4,3884.3,3.01636644]
[1761244483932,0.001,3884.4,3884.3,4.57156644]
[1761244492169,0.001,3884.4,3884.2,0.10304723]
[1761244492326,0.001,3884.4,3884.3,2.57446644]
[1761244492911,0.001,3884.4,3884.3,3.01636644]
[1761244493943,0.001,3884.4,3884.0,0.002]
[1761244494119,0.001,3884.4,3884.2,2.5745088]
[1761244494322,0.001,3884.4,3884.3,2.57446644]
[1761244494640,0.001,3884.4,3884.3,3.01636644]
[1761244495338,0.001,3884.4,3884.3,3.78931031]
[1761244495558,0.001,3884.4,3884.3,4.42589222]
[1761244499235,0.001,3884.4,3884.3,5.98109222]
[1761244502143,0.001,3884.4,3884.3,6.61677222]
[1761244502338,0.001,3884.4,3884.3,9.41889222]
[1761244502853,0.001,3884.4,3884.3,0.77294387]
[1761244503059,0.001,3884.4,3884.0,0.002]
[1761244503265,0.2205,3884.4,3884.0,0.002]
[1761244503454,0.2205,3884.4,3884.0,2.57664263]
[1761244504559,0.2205,3884.4,3884.3,0.002]
[1761244504786,6.10535314,3884.4,3884.3,0.002]
[1761244505084,8.70867775,3884.4,3884.3,0.002]
[1761244505287,0.76174461,3884.4,3884.3,0.002]
[1761244505443,4.8652,3884.4,3884.3,0.002]
[1761244505636,3.31,3884.4,3884.3,0.002]
[1761244505863,3.5295,3884.4,3884.3,0.002]
[1761244507279,6.10390016,3884.4,3884.3,0.002]
[1761244507438,6.64499078,3884.4,3884.3,0.002]
[1761244507846,8.20019078,3884.4,3884.3,0.002]
[1761244508387,11.51064376,3884.4,3884.3,0.002]
[1761244510182,8.20019078,3884.4,3884.3,0.002]
[1761244510476,11.51064376,3884.4,3884.3,0.002]
[1761244511854,8.20019078,3884.4,3884.3,0.002]
[1761244513001,4.80049078,3884.4,3884.3,0.002]
[1761244513299,0.001,3884.8,3884.3,0.4599]
[1761244513509,0.001,3884.8,3884.7,2.57420135]
[1761244513674,0.001,3884.8,3884.6,2.57424567]
[1761244513881,0.001,3884.8,3884.7,2.57420135]
[1761244515000,0.001,3884.8,3884.7,3.03210135]
[1761244515377,0.001,3884.8,3884.7,2.57420135]
[1761244516527,0.001,3884.8,3884.3,0.002]
[1761244516878,0.001,3884.8,3884.6,2.57423342]
[1761244517116,0.001,3884.8,3884.4,2.57440016]
[1761244517410,0.001,3884.8,3884.6,2.57426762]
[1761244517608,0.001,3884.8,3884.5,0.4579]